bitfinex/quotes_ETHUSD_20241109
["timestamp","ask_amount","ask_price","bid_price","bid_amount"]
[1731164948428,3.09762054,3036.0,3035.1,0.24063381]
[1731164948633,0.35740218,3036.0,3035.0,0.831]
[1731164948877,0.35740218,3036.0,3035.2,0.17506467]
[1731164949042,0.35740218,3036.0,3035.1,0.17498123]
[1731164949248,0.35740218,3036.0,3035.0,0.831]
[1731164949446,0.35740218,3036.0,3035.3,0.281]
[1731164949647,0.57402184,3036.1,3035.4,0.61588653]
[1731164949858,1.318411,3036.8,3035.6,0.281]
[1731164950238,1.318411,3036.8,3035.7,0.17447438]
[1731164950694,1.318411,3036.8,3035.0,3.0]
[1731164950695,1.318411,3036.8,3035.5,0.281]
[1731164950988,1.318411,3036.8,3035.7,0.281]
[1731164951376,2.74021836,3036.6,3035.7,0.281]
[1731164951689,3.27402184,3036.5,3035.7,0.281]
[1731164951984,2.74021836,3036.3,3035.7,0.281]
[1731164953746,3.27402184,3036.5,3035.7,0.281]
[1731164953747,0.27402184,3036.5,3035.7,0.281]
[1731164954076,3.27402184,3036.5,3035.7,0.281]
[1731164954643,0.27402184,3036.5,3035.7,0.281]
[1731164954978,0.30142402,3036.4,3035.8,0.17428919]
[1731164955276,0.30142402,3036.4,3035.7,0.281]
[1731164955781,1.318411,3036.8,3035.8,0.17428919]
[1731164955953,1.318411,3036.8,3035.7,0.281]
[1731164956149,1.318411,3036.8,3035.8,0.17428919]
[1731164956355,2.74021836,3036.6,3035.7,0.281]
[1731164956564,0.27402184,3036.5,3035.8,0.17428919]
[1731164956775,0.27402184,3036.5,3035.7,0.281]
[1731164956978,0.27402184,3036.5,3035.8,0.17455771]
[1731164957175,0.27402184,3036.5,3035.7,0.281]
[1731164957350,0.30142402,3036.4,3035.8,0.17455771]
[1731164957555,0.30142402,3036.4,3035.7,0.281]
[1731164957794,0.30142402,3036.4,3035.8,0.17455771]
[1731164958155,0.30142402,3036.4,3035.7,0.281]
[1731164958356,0.30142402,3036.4,3035.8,0.17455771]
[1731164958549,0.30142402,3036.4,3035.7,0.281]
[1731164960568,1.318411,3036.8,3035.8,0.17435622]
[1731164960785,1.318411,3036.8,3035.7,0.281]
[1731164961168,1.318411,3036.8,3035.8,0.17455771]
[1731164961382,1.318411,3036.8,3035.7,0.281]
[1731164961579,1.318411,3036.8,3035.8,0.17455771]
[1731164961787,2.74021836,3036.6,3035.7,0.281]
[1731164964370,0.30646237,3036.5,3035.7,0.281]
[1731164964605,2.74021836,3036.6,3035.7,0.281]
[1731164964780,0.30648937,3036.5,3035.7,0.281]
[1731164965116,2.74021836,3036.6,3035.7,0.281]
[1731164965281,0.65135266,3036.5,3035.7,0.281]
[1731164965492,0.34460813,3036.5,3035.7,0.281]
[1731164966393,0.70586294,3036.7,3035.9,0.281]
[1731164966595,1.318411,3036.8,3035.9,0.281]
[1731164966806,1.318411,3036.8,3036.0,0.17428807]
[1731164966807,0.30701141,3036.7,3036.0,0.17428807]
[1731164967137,1.318411,3036.8,3036.1,0.281]
[1731164967273,0.30713885,3036.7,3036.1,0.281]
[1731164967699,0.30711798,3036.6,3036.1,0.281]
[1731164967883,4.318411,3036.8,3036.1,0.281]
[1731164968082,0.30710923,3036.7,3036.1,0.281]
[1731164968389,0.30710923,3036.6,3036.1,0.281]
[1731164968593,5.09073995,3036.8,3036.1,0.281]
[1731164968798,2.74021836,3036.6,3036.1,0.281]
[1731164969006,0.30718255,3036.5,3036.1,0.281]
[1731164969304,0.38578009,3036.5,3036.1,0.281]
[1731164972272,0.30730884,3036.4,3036.1,0.281]
[1731164972464,0.38578009,3036.5,3036.1,0.281]
[1731164972707,0.30730644,3036.4,3036.1,0.281]
[1731164972987,0.38578009,3036.5,3036.1,0.281]
[1731164973185,0.61990455,3036.4,3036.1,0.281]
[1731164973400,0.31259984,3036.4,3036.1,0.281]
[1731164977535,0.30743606,3036.3,3036.1,0.281]
[1731164977725,0.31259984,3036.4,3036.1,0.281]
[1731164978039,0.30743261,3036.3,3036.1,0.281]
[1731164978352,0.30743261,3036.2,3036.1,0.281]
[1731164979937,0.8104,3036.7,3036.1,0.281]
[1731164980141,0.76586094,3036.6,3036.1,0.281]
[1731164980302,0.30758804,3036.5,3036.1,0.281]
[1731164980508,0.30758804,3036.4,3036.1,0.281]
[1731164980707,0.4582729,3036.6,3036.1,0.281]
[1731164980941,0.30758421,3036.5,3036.1,0.281]
[1731164981112,0.30758421,3036.4,3036.1,0.281]
[1731164981307,0.30758421,3036.3,3036.1,0.281]
[1731164981637,0.8104,3036.7,3036.1,0.281]
[1731164981844,0.30758382,3036.6,3036.1,0.281]
[1731164982008,0.30758382,3036.5,3036.1,0.281]
[1731164983447,0.77232895,3036.8,3036.1,0.281]
[1731164983645,0.68524851,3036.9,3036.1,0.281]
[1731164983963,3.68524851,3037.1,3036.3,0.281]
[1731164984167,0.68524851,3037.0,3036.3,0.281]
[1731164984668,0.30764819,3036.9,3036.3,0.281]
[1731164985539,0.68524851,3037.1,3036.3,0.281]
[1731164985749,0.30770248,3037.0,3036.3,0.281]
[1731164986293,0.99295099,3037.0,3036.3,0.281]
[1731164987183,0.30770248,3036.9,3036.3,0.281]
[1731164987559,0.99295099,3036.9,3036.3,0.281]
[1731164988084,0.30770248,3036.8,3036.3,0.281]
[1731164988289,0.30770995,3036.8,3036.3,0.281]
[1731164988478,0.30770995,3036.7,3036.3,0.281]
[1731164988783,0.30770995,3036.6,3036.3,0.281]
[1731164988988,0.30770995,3036.5,3036.3,0.281]
[1731164989162,0.68524851,3036.8,3036.3,0.281]
[1731164989363,0.30757936,3036.7,3036.3,0.281]
[1731164989688,0.30757936,3036.6,3036.3,0.281]
[1731164989847,0.30757936,3036.5,3036.3,0.281]
[1731164990049,0.30757936,3036.4,3036.3,0.281]
[1731164992415,0.68524851,3036.8,3036.3,0.281]
[1731164992591,0.99275211,3036.7,3036.3,0.281]
[1731164992793,0.3075036,3036.6,3036.3,0.281]
[1731164993104,0.3075036,3036.5,3036.3,0.281]
[1731164993406,0.3075036,3036.4,3036.3,0.281]
[1731164995618,0.3075036,3036.4,3036.1,0.281]
[1731164995776,0.3075036,3036.3,3036.1,0.281]
[1731164995981,0.3075036,3036.2,3036.1,0.281]
[1731164996791,0.68524851,3036.5,3036.1,0.281]
[1731164997002,0.30752741,3036.4,3036.1,0.281]
[1731164997201,0.30752741,3036.3,3036.1,0.281]
[1731164997521,0.30752741,3036.2,3036.1,0.281]
[1731165000607,0.68524851,3036.5,3036.1,0.281]
[1731165000790,0.30760841,3036.4,3036.1,0.281]
[1731165001122,0.30760841,3036.3,3036.1,0.281]
[1731165001281,0.68524851,3036.6,3036.1,0.281]
[1731165001487,0.30763277,3036.5,3036.1,0.281]
[1731165001812,0.30763277,3036.4,3036.1,0.281]
[1731165002013,0.68524851,3036.6,3036.1,0.281]
[1731165002225,0.30763654,3036.5,3036.1,0.281]
[1731165002390,0.30763654,3036.4,3036.1,0.281]
[1731165002596,0.68524851,3036.6,3036.1,0.281]
[1731165002805,0.30763445,3036.5,3036.1,0.281]
[1731165003010,0.784,3036.4,3035.3,0.281]
[1731165003313,0.68524851,3036.0,3035.3,0.281]
[1731165003483,0.99288296,3035.9,3035.3,0.281]
[1731165003691,0.68524851,3036.0,3035.3,0.281]
[1731165004025,0.30751644,3035.9,3035.3,0.281]
[1731165004192,0.30751644,3035.8,3035.3,0.281]
[1731165004380,0.30751644,3035.7,3035.3,0.281]
[1731165004580,0.30751644,3035.6,3035.3,0.281]
[1731165004818,1.46924851,3035.8,3035.3,0.281]
[1731165004819,0.30751644,3035.5,3035.3,0.281]
[1731165005023,0.30751644,3035.4,3035.3,0.281]
[1731165006333,0.68524851,3035.7,3035.3,0.281]
[1731165006544,0.30720764,3035.6,3035.3,0.281]
[1731165006834,0.30720764,3035.5,3035.3,0.281]
[1731165007134,0.68524851,3035.7,3035.3,0.281]
[1731165007305,0.3071333,3035.6,3035.3,0.281]
[1731165007633,0.3071333,3035.5,3035.3,0.281]
[1731165007807,0.68524851,3035.6,3035.3,0.281]
[1731165007991,0.3071066,3035.5,3035.3,0.281]
[1731165008331,1.99306004,3035.8,3035.3,0.281]
[1731165008332,0.68524851,3035.7,3035.3,0.281]
[1731165008628,0.30702026,3035.6,3035.3,0.281]
[1731165008802,0.68524851,3035.7,3035.3,0.281]
[1731165009143,0.30701785,3035.6,3035.3,0.281]
[1731165009298,0.68524851,3035.7,3035.3,0.281]
[1731165009494,0.30694921,3035.6,3035.3,0.281]
[1731165009722,0.68524851,3035.7,3035.3,0.281]
[1731165010242,0.68524851,3035.6,3035.3,0.281]
[1731165010539,0.68524851,3035.6,3035.1,0.281]
[1731165010755,0.30690291,3035.5,3035.1,0.281]
[1731165010902,0.68524851,3035.6,3035.2,0.17498057]
[1731165011097,1.16346535,3035.5,3034.9,0.281]
[1731165011309,0.68524851,3035.4,3034.9,0.281]
[1731165013354,0.68524851,3035.3,3034.9,0.281]
[1731165014345,0.68524851,3035.7,3034.9,0.281]
[1731165014553,0.3069154,3035.6,3034.9,0.281]
[1731165014713,0.3069154,3035.5,3034.9,0.281]
[1731165014916,0.3069154,3035.4,3035.0,0.17521671]
[1731165015111,1.50898247,3035.7,3035.0,0.17521671]
[1731165015336,0.30690231,3035.6,3035.0,0.17521671]
[1731165015541,0.30690231,3035.5,3035.0,0.17521671]
[1731165015729,0.30690231,3035.4,3035.0,0.17521671]
[1731165015932,1.34802426,3035.6,3035.0,0.17521671]
[1731165016142,0.30691525,3035.5,3035.0,0.17521671]
[1731165016344,0.30691525,3035.4,3035.0,0.17521671]
[1731165016555,0.66277575,3035.6,3035.0,0.17521671]
[1731165016717,0.30656348,3035.5,3035.0,0.17521671]
[1731165016917,1.46924851,3035.8,3035.0,0.17521671]
[1731165017145,0.30652918,3035.7,3035.0,0.17521671]
[1731165017350,0.48410695,3035.6,3035.0,0.17521671]
[1731165017650,0.30652918,3035.5,3035.0,0.17521671]
[1731165017854,0.17757777,3035.6,3035.0,0.17521671]
[1731165018066,0.30652216,3035.5,3035.0,0.17521671]
[1731165018356,0.17757777,3035.6,3035.0,0.17521671]
[1731165018545,0.30652284,3035.5,3035.0,0.17521671]
[1731165018732,0.17757777,3035.6,3035.0,0.17521671]
[1731165018927,0.30653326,3035.5,3035.0,0.17521671]
[1731165019254,0.784,3035.8,3035.0,0.17521671]
[1731165019455,0.30655643,3035.7,3035.0,0.17521671]
[1731165019618,0.30655643,3035.6,3035.0,0.17521671]
[1731165019955,0.30655643,3035.5,3035.0,0.17521671]
[1731165020152,0.784,3035.8,3035.0,0.17521671]
[1731165020460,0.30663888,3035.7,3035.0,0.17521671]
[1731165020799,0.30663888,3035.6,3035.0,0.17521671]
[1731165021003,0.30663888,3035.5,3035.0,0.17521671]
[1731165021175,0.784,3035.8,3035.0,0.17521671]
[1731165021366,0.30667351,3035.7,3035.0,0.17521671]
[1731165021562,2.04987726,3035.8,3035.0,0.17521671]
[1731165021563,0.54232859,3035.6,3035.0,0.17521671]
[1731165021802,0.30667351,3035.5,3034.9,0.281]
[1731165022002,0.23565508,3035.6,3035.1,0.17513221]
[1731165022204,0.30673914,3035.5,3034.9,0.281]
[1731165022501,2.04987726,3035.8,3035.2,0.17504772]
[1731165022707,0.81178829,3035.7,3034.9,0.281]
[1731165023007,0.30680056,3035.6,3034.9,0.281]
[1731165023301,0.7881,3036.2,3035.2,0.281]
[1731165023466,0.30690219,3036.1,3035.5,0.281]
[1731165023671,2.90438884,3036.5,3035.5,0.281]
[1731165024011,1.26587726,3036.3,3035.5,0.281]
[1731165024301,0.30691718,3036.2,3035.5,0.281]
[1731165024520,0.30691718,3036.1,3035.6,0.1747098]
[1731165024726,0.30691718,3036.0,3035.6,0.1747098]
[1731165024893,1.26587726,3036.3,3035.6,0.1747098]
[1731165025096,0.30699194,3036.2,3035.5,0.281]
[1731165025295,1.89221252,3036.3,3035.7,0.17462533]
[1731165025296,0.30699194,3036.1,3035.7,0.17462533]
[1731165025619,0.30699194,3036.0,3035.5,0.281]
[1731165025785,0.30699194,3035.9,3035.8,0.17454087]
[1731165025986,0.30699194,3035.9,3035.5,0.281]
[1731165026283,1.89221252,3036.3,3035.6,0.1747098]
[1731165026507,0.83223556,3036.2,3035.6,0.1747098]
[1731165026712,0.30711793,3036.1,3035.6,0.1747098]
[1731165026907,0.30711793,3036.0,3035.6,0.1747098]
[1731165027105,0.30711793,3035.9,3035.6,0.1747098]
[1731165027316,0.52511763,3036.2,3035.6,0.1747098]
[1731165027508,0.30712345,3036.1,3035.6,0.1747098]
[1731165027711,0.30712345,3036.0,3035.5,0.281]
[1731165028019,0.30712345,3035.9,3035.7,0.17462533]
[1731165028237,0.52511763,3036.2,3035.6,0.1747098]
[1731165028530,0.30713889,3036.1,3035.5,0.281]
[1731165028699,0.30713889,3036.0,3035.7,0.17462533]
[1731165029023,0.30713889,3035.9,3035.5,0.281]
[1731165029229,5.32376009,3036.5,3035.5,0.281]
[1731165029428,3.30715746,3036.4,3035.6,0.1747098]
[1731165029727,3.30715746,3036.4,3035.5,0.281]
[1731165029728,0.30715746,3036.3,3035.5,0.281]
[1731165029884,0.30715746,3036.2,3035.5,0.281]
[1731165030081,0.30715746,3036.1,3035.6,0.1747098]
[1731165030285,0.30715746,3036.0,3035.5,0.281]
[1731165030518,0.30715746,3035.9,3035.7,0.17462533]
[1731165030822,3.0,3036.4,3035.5,0.281]
[1731165031029,0.83958319,3036.3,3035.5,0.281]
[1731165031316,0.30720815,3036.2,3035.5,0.281]
[1731165031525,0.30720815,3036.1,3035.5,0.281]
[1731165031695,0.30720815,3036.0,3035.6,0.1747098]
[1731165031908,0.30720815,3035.9,3035.5,0.281]
[1731165032210,0.30744599,3035.8,3035.7,0.17462533]
[1731165032396,0.30744599,3035.8,3035.6,0.1747098]
[1731165032596,5.32376009,3036.5,3035.5,0.281]
[1731165032908,4.21680018,3036.4,3035.5,0.281]
[1731165033108,0.30744295,3036.3,3035.5,0.281]
[1731165033420,0.30744295,3036.2,3035.6,0.1747098]
[1731165033596,0.30744295,3036.1,3035.6,0.1747098]
[1731165033802,0.30744295,3036.0,3035.5,0.281]
[1731165034000,3.90935723,3036.4,3035.5,0.281]
[1731165034001,0.30744295,3035.9,3035.5,0.281]
[1731165034204,2.32376009,3036.5,3035.5,0.281]
[1731165034205,0.30742627,3035.8,3035.6,0.1747098]
[1731165034389,0.7881,3036.5,3035.7,0.281]
[1731165034703,0.75475144,3036.4,3035.8,0.17454087]
[1731165035018,0.30741659,3036.3,3035.8,0.17454087]
[1731165035194,0.30741659,3036.2,3035.8,0.55]
[1731165035396,0.30741659,3036.1,3035.9,0.34687343]
[1731165035598,0.68524851,3037.0,3035.9,0.281]
[1731165035823,0.47869622,3036.9,3036.1,0.281]
[1731165035988,0.30738409,3036.8,3036.1,0.281]
[1731165036192,0.30738409,3036.7,3036.2,0.17420309]
[1731165036392,0.30738409,3036.6,3036.2,0.17420309]
[1731165036737,0.30738409,3036.5,3036.1,0.281]
[1731165036925,0.7891,3037.0,3036.1,0.281]
[1731165037131,0.30726386,3036.9,3036.2,0.17420309]
[1731165037293,0.30726386,3036.8,3036.1,0.281]
[1731165037489,0.30726386,3036.7,3036.3,0.17411866]
[1731165037715,0.30726386,3036.6,3036.1,0.281]
[1731165038027,1.46406378,3037.0,3036.4,0.17403423]
[1731165038028,1.09636386,3036.5,3036.4,0.17403423]
[1731165038197,1.09636386,3036.5,3035.9,0.281]
[1731165038399,0.30726386,3036.4,3035.9,0.281]
[1731165038614,0.7891,3036.5,3035.9,0.281]
[1731165038817,0.30706794,3036.4,3035.9,0.281]
[1731165039011,0.7891,3036.5,3035.9,0.281]
[1731165039547,0.30697219,3036.4,3035.9,0.281]
[1731165039694,0.7891,3036.5,3035.9,0.281]
[1731165039894,0.30696672,3036.4,3035.9,0.281]
[1731165040205,0.7891,3036.5,3035.9,0.281]
[1731165040405,0.3069215,3036.4,3035.9,0.281]
[1731165040605,0.7891,3036.5,3035.9,0.281]
[1731165040826,0.3069367,3036.4,3035.9,0.281]
[1731165041030,0.7891,3036.5,3035.9,0.281]
[1731165041334,0.3069407,3036.4,3035.9,0.281]
[1731165041632,0.7891,3036.5,3035.9,0.281]
[1731165041832,0.30691559,3036.4,3035.9,0.281]
[1731165042008,0.7891,3036.5,3035.9,0.281]
[1731165042211,0.30692463,3036.4,3035.9,0.281]
[1731165042412,0.7891,3036.5,3035.9,0.281]
[1731165042618,0.30694972,3036.4,3035.9,0.281]
[1731165042936,0.7891,3036.5,3035.9,0.281]
[1731165043134,0.30701263,3036.4,3035.9,0.281]
[1731165043298,0.7891,3036.5,3035.9,0.281]
[1731165043499,0.30701055,3036.4,3035.9,0.281]
[1731165043840,0.7891,3036.5,3035.9,0.281]
[1731165044012,0.30701078,3036.4,3035.9,0.281]
[1731165044211,0.7891,3036.5,3035.9,0.281]
[1731165044413,0.30703004,3036.4,3035.9,0.281]
[1731165044608,0.7891,3036.5,3035.9,0.281]
[1731165044817,0.30702905,3036.4,3035.9,0.281]
[1731165045003,0.7891,3036.5,3035.9,0.281]
[1731165045203,0.30704835,3036.4,3035.9,0.281]
[1731165045421,0.7891,3036.5,3035.9,0.281]
[1731165045705,0.3070455,3036.4,3035.9,0.281]
[1731165045909,0.7891,3036.5,3035.9,0.281]
[1731165046125,0.30704467,3036.4,3035.9,0.281]
[1731165046439,0.7891,3036.5,3035.9,0.281]
[1731165046621,0.30707622,3036.4,3035.9,0.281]
[1731165046822,0.7891,3036.5,3035.9,0.281]
[1731165047141,0.30707354,3036.4,3035.9,0.281]
[1731165047314,0.30707354,3036.3,3035.9,0.281]
[1731165047513,0.7891,3036.7,3035.9,0.281]
[1731165047715,0.30714572,3036.6,3035.9,0.281]
[1731165047912,0.30714572,3036.5,3035.9,0.281]
[1731165048179,0.30714572,3036.4,3035.9,0.281]
[1731165048440,0.72162879,3036.7,3035.9,0.281]
[1731165048645,0.3072185,3036.6,3035.9,0.281]
[1731165048943,0.3072185,3036.5,3035.9,0.281]
[1731165049144,0.3072185,3036.4,3035.9,0.281]
[1731165049442,0.3072185,3036.3,3035.9,0.281]
[1731165049643,0.44068773,3036.6,3035.9,0.281]
[1731165049817,0.30731423,3036.5,3035.9,0.281]
[1731165050018,0.30731423,3036.4,3035.9,0.281]
[1731165050204,0.30731423,3036.3,3035.9,0.281]
[1731165050538,0.44068773,3036.6,3035.9,0.281]
[1731165050782,0.30739381,3036.5,3035.9,0.281]
[1731165050902,0.30739381,3036.4,3035.9,0.281]
[1731165051242,0.30739381,3036.3,3035.9,0.281]
[1731165051404,0.72162879,3036.7,3035.9,0.281]
[1731165051748,0.30747816,3036.6,3035.9,0.281]
[1731165051947,0.72162879,3036.7,3035.9,0.281]
[1731165052135,0.30747932,3036.6,3035.9,0.281]
[1731165052311,0.30747932,3036.5,3035.9,0.281]
[1731165052508,0.30747932,3036.4,3035.9,0.281]
[1731165052713,0.30747932,3036.3,3035.9,0.281]
[1731165052955,0.30747932,3036.2,3035.9,0.281]
[1731165053153,4.95035201,3036.8,3036.0,0.17450495]
[1731165053447,0.90557354,3036.7,3036.0,0.17450495]
[1731165053647,0.30775106,3036.6,3035.9,0.281]
[1731165053861,0.30775106,3036.5,3035.9,0.281]
[1731165054156,0.30775106,3036.4,3035.9,0.281]
[1731165054326,0.30775106,3036.3,3035.9,0.281]
[1731165054521,0.30775106,3036.2,3035.9,0.281]
[1731165054758,1.2651035,3036.6,3035.9,0.281]
[1731165054914,0.30780226,3036.5,3035.9,0.281]
[1731165055115,0.30780226,3036.4,3035.9,0.281]
[1731165055434,0.30780226,3036.3,3035.9,0.281]
[1731165055638,0.30780226,3036.2,3035.9,0.281]
[1731165055840,0.8011,3036.5,3036.0,0.17439514]
[1731165056038,1.2651035,3036.3,3036.0,0.17439514]
[1731165056236,1.2651035,3036.1,3035.5,0.281]
[1731165056442,0.30782044,3036.0,3035.5,0.281]
[1731165056617,0.30782044,3035.9,3035.6,0.1747098]
[1731165056959,1.2651035,3036.3,3035.6,0.1747098]
[1731165056960,0.30782044,3035.8,3035.6,0.1747098]
[1731165057117,1.2651035,3036.3,3035.6,0.1747098]
[1731165057314,1.2651035,3036.1,3035.5,0.281]
[1731165057512,1.10891342,3036.0,3035.5,0.281]
[1731165057713,0.30781342,3035.9,3035.5,0.281]
[1731165057918,0.30781342,3035.8,3035.6,0.1747098]
[1731165058131,0.30781342,3035.7,3035.6,0.1747098]
[1731165058653,0.8011,3036.0,3035.6,0.1747098]
[1731165058853,0.30773392,3035.9,3035.6,0.1747098]
[1731165059057,0.30773392,3035.8,3035.5,0.281]
[1731165059360,0.8011,3036.2,3035.6,0.1747098]
[1731165059523,0.30775104,3036.1,3035.5,0.281]
[1731165059717,0.30775104,3036.0,3035.5,0.281]
[1731165059922,0.30775104,3035.9,3035.5,0.281]
[1731165060118,0.30775104,3035.8,3035.6,0.1747098]
[1731165060324,0.8011,3036.2,3035.6,0.1747098]
[1731165060646,0.30776998,3036.1,3035.5,0.281]
[1731165060827,0.30776998,3036.0,3035.5,0.281]
[1731165061161,0.30776582,3035.9,3035.5,0.281]
[1731165061454,0.8011,3036.2,3035.5,0.281]
[1731165061455,0.30777614,3035.8,3035.5,0.281]
[1731165061613,0.8011,3036.2,3035.6,0.1747098]
[1731165061817,0.3077832,3036.1,3035.6,0.1747098]
[1731165062051,0.3077832,3036.0,3035.5,0.281]
[1731165062253,0.3077832,3036.0,3035.0,0.58375893]
[1731165062254,0.3077832,3035.9,3035.8,0.281]
[1731165062462,0.68524851,3036.6,3035.8,0.281]
[1731165062627,0.30776017,3036.5,3035.8,0.45554087]
[1731165062832,0.30776017,3036.4,3035.8,0.281]
[1731165063056,0.30776017,3036.3,3035.8,0.281]
[1731165063223,0.30776017,3036.2,3035.8,0.281]
[1731165063546,0.30776017,3036.1,3035.8,0.281]
[1731165063747,0.30776017,3036.0,3035.9,0.17445642]
[1731165065466,0.68524851,3036.6,3035.9,0.17445642]
[1731165065793,0.68524851,3036.6,3035.8,0.281]
[1731165065794,0.30782573,3036.5,3035.8,0.281]
[1731165065953,0.30782573,3036.4,3035.8,0.281]
[1731165066164,0.30782573,3036.3,3035.8,0.281]
[1731165066455,0.30782573,3036.2,3035.8,0.281]
[1731165066669,0.30782573,3036.1,3035.8,0.281]
[1731165066824,0.30782573,3036.0,3035.9,0.17445642]
[1731165070795,0.68524851,3036.4,3035.9,0.17445642]
[1731165070929,0.30779761,3036.3,3035.9,0.17445642]
[1731165071137,0.30779761,3036.2,3035.8,0.281]
[1731165071336,0.30779761,3036.1,3036.0,0.17437197]
[1731165071571,0.30779761,3036.1,3035.9,0.17445642]
[1731165071766,0.68524851,3036.4,3036.0,0.17437197]
[1731165072156,0.30774229,3036.3,3035.8,0.281]
[1731165072468,0.30774229,3036.2,3035.8,0.281]
[1731165072656,0.30774229,3036.1,3035.8,0.281]
[1731165072856,0.30774229,3036.0,3035.8,0.281]
[1731165073065,0.68524851,3036.4,3035.9,0.17445642]
[1731165073370,0.30777425,3036.3,3035.8,0.281]
[1731165073578,0.30777425,3036.2,3035.8,0.281]
[1731165073787,0.30777425,3036.1,3035.8,0.281]
[1731165073982,0.30777425,3036.0,3035.9,0.17445642]
[1731165074671,0.61541688,3036.0,3035.3,0.281]
[1731165074846,0.30777425,3035.9,3035.3,0.281]
[1731165075052,0.30777425,3035.8,3035.3,0.281]
[1731165075263,0.30777425,3035.7,3035.3,0.281]
[1731165075440,0.30777425,3035.6,3034.3,7.31]
[1731165075647,1.57287775,3035.5,3035.4,0.17487875]
[1731165075953,2.60075051,3035.5,3034.7,0.281]
[1731165076164,0.99663011,3035.4,3034.7,0.281]
[1731165076349,0.99663011,3035.3,3034.8,0.17538573]
[1731165076540,0.30777425,3035.2,3034.7,0.281]
[1731165076738,0.68885586,3035.3,3034.9,0.17524994]
[1731165076739,0.30777425,3035.1,3034.9,0.17524994]
[1731165076962,2.29297626,3035.5,3034.7,0.281]
[1731165076963,1.95395936,3035.5,3034.7,0.281]
[1731165077179,0.30740785,3035.4,3034.7,0.281]
[1731165077380,0.30740785,3035.3,3034.7,0.281]
[1731165077579,0.30740785,3035.2,3034.7,0.281]
[1731165077794,2.35788435,3035.5,3034.7,0.281]
[1731165078093,0.30720474,3035.4,3034.8,0.17494946]
[1731165078390,0.30720474,3035.4,3034.4,0.831]
[1731165078391,0.8183,3035.2,3034.4,0.831]
[1731165078591,0.30703694,3035.1,3034.9,0.17486497]
[1731165078762,0.8183,3035.2,3034.4,0.831]
[1731165079098,0.30702485,3035.1,3034.4,0.831]
[1731165079393,0.8183,3035.2,3034.6,0.55]
[1731165079577,0.30684698,3035.1,3034.6,0.55]
[1731165079891,0.8183,3035.2,3034.7,0.17503396]
[1731165080076,0.30684119,3035.1,3034.6,0.55]
[1731165080280,1.2651035,3035.1,3034.4,0.281]
[1731165080497,1.50412797,3035.1,3034.1,0.281]
[1731165080830,0.30671287,3035.0,3034.2,0.17566801]
[1731165080992,1.50412797,3035.1,3034.2,0.17566801]
[1731165081314,1.2651035,3034.9,3034.2,0.17566801]
[1731165081457,1.2651035,3034.7,3034.2,0.17566801]
[1731165081801,5.0834035,3034.9,3034.1,0.281]
[1731165082092,0.30653395,3034.8,3034.1,0.281]
[1731165082265,0.30653395,3034.7,3034.2,0.1756412]
[1731165082620,2.0834035,3034.9,3034.2,0.1756412]
[1731165082904,1.2651035,3034.7,3033.8,0.52985913]
[1731165083058,1.2651035,3034.7,3033.9,0.72589532]
[1731165083265,1.2651035,3034.7,3033.9,0.17589532]
[1731165083766,0.8183,3034.4,3033.9,0.17589532]
[1731165084173,0.8183,3034.4,3033.0,0.34295889]
[1731165084174,1.2651035,3034.1,3033.0,0.34295889]
[1731165084368,0.8183,3034.4,3034.0,0.17588769]
[1731165084577,1.2651035,3034.1,3032.8,0.281]
[1731165084777,0.8183,3033.9,3032.8,0.52152943]
[1731165084979,2.0834035,3033.9,3032.9,0.1768694]
[1731165085180,2.0834035,3033.9,3032.8,0.52152943]
[1731165085403,0.8183,3033.9,3032.8,0.52152943]
[1731165085578,0.8183,3033.9,3032.9,0.1769207]
[1731165085996,0.8183,3033.9,3032.8,0.52152943]
[1731165086400,0.8183,3033.9,3032.9,0.17694635]
[1731165087172,0.8183,3033.9,3032.8,0.52152943]
[1731165087716,0.8183,3033.9,3032.9,0.17702331]
[1731165087895,0.8183,3033.9,3032.8,0.52152943]
[1731165088069,0.8183,3033.9,3032.9,0.17707462]
[1731165088268,0.8183,3033.9,3032.8,0.52152943]
[1731165088468,0.8183,3033.9,3032.9,0.17710028]
[1731165088681,0.8183,3033.9,3032.8,0.52152943]
[1731165088907,0.8183,3033.9,3032.9,0.17712593]
[1731165089078,0.8183,3033.9,3032.8,0.52152943]
[1731165089280,0.8183,3033.9,3032.9,0.17712593]
[1731165089479,0.8183,3033.9,3032.8,0.52152943]
[1731165089673,0.8183,3033.9,3032.9,0.17712593]
[1731165089871,0.8183,3033.9,3032.8,0.52152943]
[1731165090078,0.8183,3033.9,3032.9,0.17712593]
[1731165090308,1.17476971,3033.9,3032.8,0.52152943]
[1731165090504,1.17476971,3033.9,3032.9,0.17712593]
[1731165090714,1.17476971,3033.9,3032.8,0.52152943]
[1731165090884,1.17476971,3033.9,3032.9,0.17712593]
[1731165091086,1.17476971,3033.9,3032.8,0.52152943]
[1731165091297,0.8183,3033.9,3032.9,0.72712593]
[1731165092522,3.0,3034.6,3033.2,0.55]
[1731165092682,0.8017,3034.5,3033.5,0.281]
[1731165093010,0.8017,3034.5,3033.6,0.1765337]
[1731165093917,0.8017,3034.5,3033.6,0.24245778]
[1731165094211,0.8017,3034.5,3033.7,0.55]
[1731165094596,0.8017,3034.5,3033.8,0.17636455]
[1731165100116,0.8017,3034.5,3033.0,0.281]
[1731165100117,0.8017,3034.3,3033.0,0.281]
[1731165100320,0.8017,3034.3,3033.1,0.1769567]
[1731165101623,0.8017,3034.3,3033.2,0.55]
[1731165101982,0.8017,3034.3,3033.3,0.17678748]
[1731165102382,1.21735097,3034.3,3033.3,0.17678748]
[1731165102785,0.8017,3034.2,3033.3,0.17678748]
[1731165108010,0.8017,3034.2,3033.1,0.55]
[1731165108417,0.8017,3034.2,3033.2,0.17687209]
[1731165117257,0.7897,3034.0,3033.2,0.17687209]